bitfinex-derivatives/quotes_BTCF0:USTF0_20250905
["timestamp","ask_amount","ask_price","bid_price","bid_amount"]
[1757082637321,0.7453898,111160.0,111150.0,1e-07]
[1757082637522,0.0999498,111160.0,111150.0,1e-07]
[1757082637728,0.7453898,111160.0,111150.0,1e-07]
[1757082638030,0.7523898,111160.0,111150.0,1e-07]
[1757082638816,0.0899741,111130.0,111110.0,0.43413245]
[1757082639122,0.1799222,111150.0,111110.0,0.89121442]
[1757082639123,0.0899822,111120.0,111110.0,0.89121442]
[1757082639324,0.0899774,111130.0,111110.0,2.38440472]
[1757082639527,0.0001,111150.0,111140.0,0.089966]
[1757082639720,0.017,111160.0,111140.0,2.31092377]
[1757082639916,0.017,111160.0,111150.0,0.3608]
[1757082640220,0.5023941,111160.0,111140.0,0.3608]
[1757082640422,0.007,111160.0,111150.0,0.4507579]
[1757082640624,0.007,111160.0,111150.0,0.90783987]
[1757082640826,0.007,111160.0,111150.0,0.81788197]
[1757082641129,0.02054497,111170.0,111150.0,0.81788197]
[1757082641330,0.02064497,111170.0,111160.0,0.3608]
[1757082641627,0.02054497,111170.0,111160.0,0.0001]
[1757082641930,0.38134497,111170.0,111160.0,0.0001]
[1757082642921,0.64134497,111170.0,111160.0,0.0001]
[1757082643621,0.39134497,111170.0,111160.0,0.0001]
[1757082643819,1.11254471,111170.0,111160.0,0.0011]
[1757082644022,0.65334497,111170.0,111160.0,0.0011]
[1757082644422,0.66134497,111170.0,111160.0,0.0011]
[1757082644626,0.41134497,111170.0,111160.0,0.0011]
[1757082644830,0.03464,111160.0,111120.0,0.3608]
[1757082645130,0.39544,111140.0,111110.0,2.39333219]
[1757082645431,0.39544,111140.0,111120.0,0.3608]
[1757082645629,0.39544,111140.0,111110.0,1.93413245]
[1757082645826,0.03259,111120.0,111110.0,0.43413245]
[1757082646028,0.39554,111140.0,111110.0,0.98332189]
[1757082646226,0.85463974,111140.0,111110.0,0.43413245]
[1757082646421,0.85463974,111140.0,111110.0,0.89333219]
[1757082646626,0.39544,111140.0,111110.0,0.43413245]
[1757082646824,0.39339,111120.0,111110.0,0.07333245]
[1757082647025,0.39339,111120.0,111100.0,0.81999974]
[1757082647528,0.0899903,111110.0,111100.0,0.3608]
[1757082647730,0.0899903,111110.0,111100.0,0.81999974]
[1757082648032,0.0899903,111110.0,111100.0,0.90999814]
[1757082648534,0.007,111120.0,111110.0,0.0899903]
[1757082648732,0.0969822,111120.0,111110.0,0.54919004]
[1757082649032,0.1009822,111120.0,111110.0,0.54919004]
[1757082649231,0.0909781,111120.0,111110.0,0.530387]
[1757082649433,0.004,111120.0,111110.0,1.2311773]
[1757082649634,0.004,111120.0,111110.0,1.78037389]
[1757082649832,0.004,111120.0,111110.0,1.32117415]
[1757082650028,0.004,111120.0,111110.0,1.78037389]
[1757082650233,0.0001,111140.0,111130.0,0.0899741]
[1757082650423,0.0899638,111150.0,111130.0,0.45919974]
[1757082650629,0.4507638,111150.0,111130.0,0.3608]
[1757082650828,0.4853942,111160.0,111140.0,0.54916574]
[1757082651030,0.089966,111140.0,111130.0,0.3608]
[1757082651226,0.089966,111140.0,111130.0,0.81999974]
[1757082651435,0.0899629,111150.0,111130.0,0.90997384]
[1757082651623,0.0899629,111150.0,111140.0,0.45919974]
[1757082651831,0.03464,111160.0,111130.0,0.001]
[1757082652035,0.39544,111160.0,111130.0,0.001]
[1757082652226,0.3608,111150.0,111130.0,0.82548974]
[1757082652624,0.39544,111160.0,111130.0,0.36629]
[1757082652829,0.3608,111150.0,111130.0,0.00549]
[1757082653028,0.3608,111150.0,111130.0,0.46468974]
[1757082653237,0.3638,111150.0,111130.0,0.00449]
[1757082653433,0.03259,111140.0,111130.0,0.00449]
[1757082653643,0.39339,111140.0,111130.0,0.00449]
[1757082653829,0.39339,111140.0,111130.0,0.00549]
[1757082654636,0.39339,111140.0,111130.0,0.00449]
[1757082654842,1.10658974,111140.0,111130.0,0.00549]
[1757082655140,1.10658974,111140.0,111110.0,0.07118726]
[1757082655141,1.10758974,111140.0,111110.0,0.07118726]
[1757082655340,0.39339,111120.0,111100.0,1.85999974]
[1757082655936,0.3608,111130.0,111110.0,0.45919974]
[1757082656131,0.03759,111140.0,111120.0,0.45919974]
[1757082656339,0.39839,111140.0,111120.0,0.45919974]
[1757082656538,0.39739,111140.0,111120.0,0.45919974]
[1757082656745,0.3608,111150.0,111130.0,0.45919974]
[1757082656926,0.3608,111150.0,111140.0,0.45919974]
[1757082657131,0.39544,111160.0,111140.0,0.45919974]
[1757082657338,0.54544,111160.0,111140.0,0.45919974]
[1757082657932,0.005,111150.0,111140.0,0.45919974]
[1757082658135,0.005,111150.0,111140.0,0.54916584]
[1757082658435,0.005,111150.0,111140.0,0.45919974]
[1757082658638,0.005,111150.0,111140.0,0.54916584]
[1757082658949,0.005,111150.0,111140.0,1.15996584]
[1757082659133,0.005,111150.0,111140.0,0.3608]
[1757082659333,0.0949636,111150.0,111140.0,0.45919974]
[1757082659528,0.089958,111150.0,111140.0,1.06999974]
[1757082659738,0.089958,111150.0,111140.0,1.07099974]
[1757082659936,0.089958,111150.0,111140.0,0.3618]
[1757082660130,0.089958,111150.0,111140.0,0.001]
[1757082660335,0.700758,111150.0,111140.0,0.001]
[1757082660536,0.0899741,111130.0,111120.0,0.81999974]
[1757082661134,0.0899671,111140.0,111120.0,0.90997824]
[1757082661340,0.0899671,111140.0,111130.0,0.3608]
[1757082661841,0.4617623,111150.0,111130.0,2.10919974]
[1757082662141,0.0899661,111140.0,111130.0,1.85919974]
[1757082662442,0.0959598,111150.0,111130.0,2.19917394]
[1757082662642,0.0959598,111150.0,111140.0,0.81999974]
[1757082662834,0.0899502,111160.0,111140.0,0.90996584]
[1757082663034,0.089958,111150.0,111140.0,0.3608]
[1757082663236,0.089958,111150.0,111140.0,0.81999974]
[1757082663540,0.0949661,111140.0,111130.0,0.81999974]
[1757082663729,0.0949661,111140.0,111130.0,0.82009974]
[1757082663936,0.1275561,111140.0,111130.0,0.0644724]
[1757082664435,0.7383561,111140.0,111130.0,0.0644724]
[1757082664636,0.3609,111150.0,111130.0,0.61364634]
[1757082664839,0.3609,111150.0,111130.0,1.1033524]
[1757082664840,0.0939661,111140.0,111130.0,1.1033524]
[1757082665031,0.004,111140.0,111130.0,1.8041266]
[1757082665236,0.0939661,111140.0,111130.0,1.8041266]
[1757082665644,0.004,111140.0,111130.0,1.8041266]
[1757082666042,0.0939661,111140.0,111130.0,1.7141524]
[1757082666235,0.0939661,111140.0,111130.0,2.17335214]
[1757082666433,0.009,111140.0,111130.0,2.26332634]
[1757082666639,0.0989661,111140.0,111130.0,1.7141524]
[1757082666838,0.0989661,111140.0,111130.0,1.1032324]
[1757082667140,1.20155584,111140.0,111130.0,1e-07]
[1757082667341,0.4883561,111140.0,111130.0,1e-07]
[1757082667647,1.19755584,111140.0,111130.0,0.0010001]
[1757082667841,0.4883561,111140.0,111130.0,0.0010001]
[1757082668046,0.7383561,111140.0,111130.0,0.0010001]
[1757082668543,1.19755584,111140.0,111130.0,1e-07]
[1757082668743,0.0899904,111110.0,111100.0,0.07274151]
[1757082668946,0.0900066,111090.0,111080.0,0.3609]
[1757082669252,0.0900066,111090.0,111080.0,0.45919974]
[1757082669436,0.0900015,111100.0,111080.0,0.81999974]
[1757082669732,0.0900066,111090.0,111080.0,0.3609]
[1757082669931,0.0900066,111090.0,111080.0,0.89351762]
[1757082670339,0.0910066,111090.0,111080.0,0.89451762]
[1757082670541,0.0910066,111090.0,111080.0,0.43531788]
[1757082670741,0.3410066,111090.0,111080.0,0.07651788]
[1757082670947,0.7018066,111090.0,111080.0,0.07651788]
[1757082671338,0.03259,111060.0,111040.0,0.3608]
[1757082671536,0.03259,111040.0,111000.0,0.87215]
[1757082671738,0.03259,111040.0,111010.0,0.66105292]
[1757082671938,0.03259,111040.0,111010.0,0.6512248]
[1757082672453,0.3608,111030.0,111000.0,2.31999974]
[1757082672650,0.3608,111030.0,111010.0,0.3608]
[1757082673350,0.3598,111030.0,111000.0,1.93253971]
[1757082673653,0.3599,111030.0,111020.0,0.45919974]
[1757082673853,0.3609,111040.0,111020.0,0.45919974]
[1757082674050,0.3608,111040.0,111030.0,0.45919974]
[1757082674255,0.3608,111040.0,111020.0,0.0001]
[1757082674553,0.39339,111040.0,111020.0,0.45919974]
[1757082674851,0.004,111030.0,111020.0,0.45919974]
[1757082675246,0.004,111030.0,111010.0,0.3609]
[1757082675545,0.004,111030.0,111020.0,0.45919974]
[1757082675751,0.004,111030.0,111020.0,2.22146544]
[1757082675941,0.004,111030.0,111020.0,2.13139974]
[1757082676141,0.004,111030.0,111020.0,1.85855974]
[1757082677154,0.002,111030.0,111020.0,1.85855974]
[1757082677652,0.03703,111040.0,111020.0,0.3608]
[1757082677849,0.003,111030.0,111020.0,0.3608]
[1757082678045,0.006,111030.0,111020.0,0.3608]
[1757082678247,0.006,111030.0,111020.0,0.81999974]
[1757082678747,0.3668,111030.0,111010.0,1.39954]
[1757082678950,0.006,111030.0,111010.0,1.85863974]
[1757082679149,0.006,111030.0,111020.0,0.45919974]
[1757082679345,0.3668,111030.0,111010.0,1.64954]
[1757082679650,0.3638,111030.0,111010.0,1.39944]
[1757082679843,0.3638,111030.0,111010.0,1.85863974]
[1757082680042,0.0900737,111010.0,111000.0,0.0001]
[1757082680242,0.0900737,111010.0,110990.0,1.58806974]
[1757082680447,0.0900737,111010.0,111000.0,0.45919974]
[1757082680643,0.0900739,111010.0,111000.0,0.45919974]
[1757082681161,0.090082,111000.0,110990.0,1.85877974]
[1757082681457,0.090082,111000.0,110990.0,1.85867974]
[1757082681651,0.0011,111010.0,111000.0,0.0900822]
[1757082681954,0.001,111010.0,111000.0,0.4508822]
[1757082682159,0.001,111010.0,111000.0,1.64704168]
[1757082682958,0.002,111010.0,111000.0,0.81872753]
[1757082683146,0.002,111010.0,111000.0,1.73712701]
[1757082683448,0.0900822,111000.0,110990.0,0.37077004]
[1757082683656,0.0900822,111000.0,110990.0,1.92911272]
[1757082683850,0.0931743,111010.0,110990.0,1.56000328]
[1757082684050,0.0900822,111000.0,110990.0,1.56984273]
[1757082684356,0.0900822,111000.0,110990.0,1.93895217]
[1757082684550,0.0021,111010.0,110990.0,2.02904247]
[1757082684758,0.002,111010.0,111000.0,0.57704194]
[1757082685055,0.002,111010.0,111000.0,0.45919974]
[1757082685056,0.092075,111010.0,111000.0,0.45919974]
[1757082685247,0.002,111010.0,111000.0,0.4786422]
[1757082685449,0.0001,111020.0,111000.0,1.73713582]
[1757082685649,0.38215233,111050.0,111020.0,0.110906]
[1757082685650,0.02135233,111050.0,111020.0,0.110906]
[1757082685846,0.02135233,111050.0,111040.0,1.39537918]
[1757082686053,0.02095831,111070.0,111040.0,1.30532948]
[1757082686356,0.02095831,111070.0,111060.0,0.3608]
[1757082686556,0.02095831,111070.0,111060.0,0.81999974]
[1757082687053,0.02095831,111070.0,111060.0,0.45919974]
[1757082687248,0.02095831,111070.0,111060.0,1.06999974]
[1757082687451,0.11098371,111070.0,111060.0,0.45929974]
[1757082687655,0.11198371,111070.0,111060.0,0.0001]
[1757082687852,0.36498371,111070.0,111060.0,0.0001]
[1757082688352,0.11598381,111070.0,111060.0,0.45929974]
[1757082688554,0.36598381,111070.0,111060.0,0.0001]
[1757082689056,0.36598381,111070.0,111060.0,0.45929974]
[1757082689253,0.02595831,111070.0,111060.0,0.45929974]
[1757082689453,0.11598381,111070.0,111060.0,0.45929974]
[1757082689757,0.11298381,111070.0,111060.0,0.0001]
[1757082690061,0.72478381,111070.0,111060.0,0.0001]
[1757082690250,0.72878381,111070.0,111060.0,0.0001]
[1757082690447,0.47878381,111070.0,111060.0,0.45929974]
[1757082690653,0.47578381,111070.0,111060.0,0.45929974]
[1757082690947,0.11798381,111070.0,111060.0,0.45929974]
[1757082691147,0.72878381,111070.0,111060.0,0.0001]
[1757082691749,0.36798381,111070.0,111060.0,0.82009974]
[1757082691946,0.11798251,111070.0,111060.0,0.71873974]
[1757082692148,0.11798251,111070.0,111060.0,1.50725974]
[1757082692355,0.11798251,111070.0,111060.0,1.04806]
[1757082692554,0.72878251,111070.0,111060.0,0.0001]
[1757082692752,0.36798251,111070.0,111060.0,0.0001]
[1757082692948,0.72878251,111070.0,111060.0,0.0001]
[1757082693156,0.72878251,111070.0,111060.0,0.45929974]
[1757082693352,0.47878251,111070.0,111060.0,0.45929974]
[1757082693552,0.76271251,111070.0,111060.0,0.0001]
[1757082693751,0.40191251,111070.0,111060.0,0.0001]
[1757082693953,0.40191251,111070.0,111060.0,0.45929974]
[1757082694151,0.15191251,111070.0,111060.0,0.45929974]
[1757082694451,0.02795831,111070.0,111060.0,1.10037974]
[1757082694659,0.007,111070.0,111060.0,1.2804507]
[1757082694955,0.0970255,111070.0,111060.0,1.2804507]
[1757082695157,0.0970255,111070.0,111060.0,1.1904171]
[1757082695356,0.0970255,111070.0,111060.0,1.20007608]
[1757082695554,0.0970255,111070.0,111060.0,1.86701974]
[1757082695861,0.007,111070.0,111060.0,2.24704891]
[1757082696055,0.0970255,111070.0,111060.0,2.12673531]
[1757082696254,0.0970255,111070.0,111060.0,1.86701974]
[1757082696553,0.0970255,111070.0,111060.0,2.11701974]
[1757082696759,0.0970255,111070.0,111060.0,2.23733334]
[1757082696958,0.1309555,111070.0,111060.0,0.0001]
[1757082697156,0.3809555,111070.0,111060.0,0.0001]
[1757082697960,0.3809555,111070.0,111060.0,0.3609]
[1757082698656,0.3809555,111070.0,111060.0,0.0001]
[1757082698960,0.3809555,111070.0,111060.0,0.3609]
[1757082699257,0.1309555,111070.0,111060.0,0.82009974]
[1757082700263,0.007,111070.0,111060.0,1.16013394]
[1757082700463,0.097026,111070.0,111060.0,1.07009974]
[1757082700852,0.097026,111070.0,111060.0,1.16013384]
[1757082701052,0.097026,111070.0,111060.0,1.07009974]
[1757082701753,0.097026,111070.0,111060.0,1.16013364]
[1757082701957,0.007,111070.0,111060.0,1.16013364]
[1757082702155,0.0901219,111080.0,111070.0,0.1091558]
[1757082702156,0.0001,111080.0,111070.0,0.1091558]
[1757082702458,0.01785165,111090.0,111080.0,0.1201977]
[1757082702766,0.01785165,111090.0,111080.0,1.39939718]
[1757082702967,0.01785165,111090.0,111080.0,1.64939718]
[1757082703166,0.00042165,111090.0,111080.0,1.64939718]
[1757082703362,0.0900964,111110.0,111100.0,0.090001]
[1757082703562,0.0899964,111110.0,111100.0,2.21836121]
[1757082703969,0.1239264,111110.0,111100.0,1.76104]
[1757082704566,0.0899964,111110.0,111100.0,1.76104]
[1757082705161,0.0899964,111110.0,111100.0,1.40024]
[1757082705162,0.3742164,111110.0,111100.0,1.40024]
[1757082705757,0.03122,111100.0,111090.0,0.3608]
[1757082705957,0.02672,111080.0,111070.0,0.3608]
[1757082706366,0.02672,111080.0,111060.0,1.1226]
[1757082706566,0.03122,111070.0,111060.0,0.3608]
[1757082706762,0.03122,111070.0,111050.0,0.43332352]
[1757082707369,0.03022,111060.0,111050.0,0.43332352]
[1757082707765,0.02922,111060.0,111050.0,0.43332352]
[1757082708163,0.1192533,111060.0,111050.0,0.43332352]
[1757082708368,0.39202,111070.0,111050.0,0.43332352]
[1757082708569,0.3608,111070.0,111050.0,0.45645352]
[1757082708865,0.0900333,111060.0,111050.0,0.43732352]
[1757082709065,0.4820458,111070.0,111050.0,0.43332352]
[1757082709266,0.001,111060.0,111050.0,0.43332352]
[1757082709465,0.001,111060.0,111050.0,0.88968473]
[1757082709768,0.001,111060.0,111050.0,0.9797302]
[1757082710078,0.001,111060.0,111050.0,0.43432352]
[1757082710268,0.001,111060.0,111050.0,0.89068473]
[1757082710567,0.001,111060.0,111050.0,0.43432352]
[1757082710774,0.03122,111060.0,111050.0,1.48820352]
[1757082710974,0.03222,111060.0,111050.0,1.48820352]
[1757082711270,0.39302,111060.0,111050.0,1.12740352]
[1757082711477,0.03122,111050.0,111040.0,0.0046]
[1757082711771,0.03122,111050.0,111040.0,0.0045]
[1757082712369,0.64202,111050.0,111040.0,0.0045]
[1757082713563,0.64502,111050.0,111040.0,0.0055]
[1757082713768,1.10138121,111050.0,111040.0,0.0055]
[1757082714070,1.34233903,111050.0,110990.0,0.72455424]
[1757082714373,0.39202,111000.0,110990.0,0.16887424]
[1757082714577,0.39202,111000.0,110990.0,0.09856126]
[1757082714766,0.65199923,111000.0,110990.0,0.09856126]
[1757082715670,0.74208213,111000.0,110990.0,0.05014316]
[1757082715876,0.76542126,111000.0,110990.0,6e-08]
[1757082716077,1.22178247,111000.0,110990.0,6e-08]
[1757082716266,0.090091,110990.0,110980.0,0.0001]
[1757082716571,0.090091,110990.0,110970.0,0.0001]
[1757082716572,0.1213192,110980.0,110970.0,0.0001]
[1757082716767,0.0901073,110970.0,110960.0,0.27211186]
[1757082716968,0.0901073,110970.0,110960.0,0.27201186]
[1757082717278,0.4509073,110970.0,110960.0,0.27201186]
[1757082718274,0.4822272,110980.0,110960.0,1.33917307]
[1757082718470,0.0901087,110970.0,110960.0,1.06716121]
[1757082718771,0.0901087,110970.0,110960.0,0.45636121]
[1757082718978,0.0902048,110980.0,110960.0,1.87400121]
[1757082719272,0.0901943,110990.0,110970.0,1.06716121]
[1757082719473,0.02143913,111000.0,110980.0,1.41732]
[1757082719770,0.47222663,111000.0,110980.0,1.05652]
[1757082719975,0.50344663,111000.0,110980.0,1.05652]
[1757082720174,0.3608,110990.0,110970.0,0.45646121]
[1757082720470,0.003,110980.0,110960.0,1.87394121]
[1757082720673,0.4509102,110970.0,110960.0,1.05668]
[1757082720879,0.3608,110970.0,110960.0,1.60325951]
[1757082721172,0.3608,110970.0,110960.0,1.1468983]
[1757082721377,0.1215261,110980.0,110960.0,1.51314121]
[1757082721573,0.1214261,110980.0,110960.0,1.60325791]
[1757082721774,0.0901096,110970.0,110960.0,0.0001]
[1757082722081,0.3608,110970.0,110960.0,0.0001]
[1757082722273,0.0901103,110970.0,110960.0,0.0001]
[1757082722876,0.0901103,110970.0,110960.0,0.0021]
[1757082723376,0.0901103,110970.0,110960.0,0.0001]
[1757082723575,0.0911103,110970.0,110960.0,0.001]
[1757082723884,0.4519103,110970.0,110960.0,0.001]
[1757082724067,0.4831303,110970.0,110960.0,0.001]
[1757082724273,0.0901253,110950.0,110940.0,0.3608]
[1757082724575,0.0901253,110950.0,110940.0,0.81716121]
[1757082724779,0.0901253,110950.0,110940.0,0.3608]
[1757082724973,0.0902176,110960.0,110940.0,1.06716121]
[1757082725175,0.0901253,110950.0,110940.0,0.72006475]
[1757082725476,0.0901253,110950.0,110940.0,0.6108]
[1757082725668,0.0901253,110950.0,110940.0,1.9500326]
[1757082725867,0.0901263,110950.0,110940.0,1.74367139]
[1757082726073,0.0901263,110950.0,110940.0,0.07391139]
[1757082726376,0.0901263,110950.0,110940.0,0.002]
[1757082726377,0.7331463,110950.0,110940.0,0.002]
[1757082727382,0.4831463,110950.0,110940.0,0.002]
[1757082727679,0.001,110950.0,110940.0,1.17842571]
[1757082727984,0.001,110950.0,110940.0,0.43439194]
[1757082728183,0.001,110950.0,110940.0,1.23088755]
[1757082728385,0.001,110950.0,110940.0,1.3210223]
[1757082728583,0.0911263,110950.0,110940.0,0.9808879]
[1757082728884,0.001,110950.0,110940.0,0.43439194]
[1757082729085,0.001,110950.0,110940.0,1.25342755]
[1757082729283,0.0001,110960.0,110950.0,0.0901263]
[1757082729485,0.0001,110970.0,110960.0,0.1092482]
[1757082729676,0.0001,110980.0,110970.0,0.0901101]
[1757082729879,0.0001,110990.0,110970.0,0.3608]
[1757082730088,0.3608,111030.0,110980.0,2.15694121]
[1757082730278,0.02096722,111040.0,111020.0,0.81716121]
[1757082730583,0.06008338,111060.0,111030.0,2.36506242]
[1757082730786,0.06008338,111060.0,111050.0,1.26800641]
[1757082730984,0.00165146,111060.0,111050.0,0.54640641]
[1757082731183,0.00165146,111060.0,111050.0,0.66460359]
[1757082731386,0.00165146,111060.0,111050.0,0.82753723]
[1757082731695,0.00165146,111060.0,111050.0,2.610766]
[1757082731988,0.0001,111070.0,111060.0,0.0900371]
[1757082732184,0.1212571,111060.0,111050.0,0.52383364]
[1757082732383,0.0900371,111060.0,111050.0,0.4336679]
[1757082732780,0.0900371,111060.0,111050.0,0.0728679]
[1757082732982,0.25,111060.0,111040.0,0.3609]
[1757082733189,0.03122,111060.0,111040.0,0.3608]
[1757082733386,0.84838121,111060.0,111030.0,0.3609]
[1757082733583,0.39712,111060.0,111050.0,0.001]
[1757082733784,0.64702,111060.0,111050.0,0.001]
[1757082733998,0.64702,111060.0,111020.0,0.3608]
[1757082733999,0.77896238,111060.0,111020.0,0.3608]
[1757082734296,0.03122,111020.0,111000.0,0.3608]
[1757082734495,0.03122,111020.0,111000.0,1.51643325]
[1757082734691,0.39202,111020.0,111000.0,0.42467325]
[1757082735097,0.03122,111020.0,111010.0,0.3608]
[1757082735500,0.64202,111020.0,111000.0,0.42467325]
[1757082735696,0.02965171,111020.0,111000.0,0.42467325]
[1757082735898,0.39045171,111020.0,111000.0,0.42467325]
[1757082736301,0.84981292,111020.0,111000.0,0.06387325]
[1757082736496,0.39345171,111020.0,111000.0,0.06387325]
[1757082736998,0.6108,111010.0,111000.0,0.06387325]
[1757082737707,0.03565171,111020.0,111000.0,0.88103446]
[1757082737898,0.03565171,111020.0,111010.0,0.45636121]
[1757082738096,0.006,111020.0,111010.0,1.15723861]
[1757082738302,0.02114238,111060.0,111010.0,1.20226932]
[1757082738499,0.02114238,111060.0,111050.0,0.81716121]
[1757082738802,0.05235238,111060.0,111040.0,1.45028]
[1757082739009,0.05235238,111060.0,111050.0,0.81716121]
[1757082739304,0.05235238,111060.0,111050.0,0.43106059]
[1757082739601,0.66315238,111060.0,111040.0,0.0001]
[1757082739807,0.03121,111040.0,111030.0,0.0001]
[1757082740004,0.1212631,111040.0,111030.0,0.3608]
[1757082740205,0.3712631,111040.0,111030.0,0.3608]
[1757082740505,0.03121,111040.0,111030.0,0.81716121]
[1757082740700,0.03121,111040.0,111020.0,0.0001]
[1757082740701,0.08962949,111030.0,111020.0,0.0001]
[1757082740902,0.1212793,111020.0,111010.0,0.0001]
[1757082741105,0.0900774,111010.0,111000.0,0.0001]
[1757082741306,0.1213118,110980.0,110970.0,1.97115446]
[1757082742313,0.1213118,110980.0,110970.0,1.15399325]
[1757082742500,0.1213118,110980.0,110970.0,1.51489325]
[1757082742699,0.1213118,110980.0,110970.0,1.97125446]
[1757082743002,0.0002,110990.0,110970.0,2.22225446]
[1757082743201,0.0002,110990.0,110980.0,0.81716121]
[1757082743397,0.03141,111000.0,110980.0,0.0001]
[1757082743601,0.03141,111000.0,110980.0,0.3609]
[1757082744609,0.03241,111000.0,110980.0,0.3609]
[1757082745106,0.03241,111000.0,110990.0,0.3608]
[1757082745308,0.03221,111000.0,110990.0,1.44778]
[1757082745500,0.28221,111000.0,110970.0,0.0001]
[1757082745699,0.03121,110980.0,110960.0,0.01824933]
[1757082745896,0.39201,110980.0,110960.0,0.01814933]
[1757082746108,0.3608,110970.0,110960.0,0.01814933]
[1757082746305,0.3608,110970.0,110950.0,0.42467325]
[1757082746514,0.39201,110980.0,110950.0,0.42467325]
[1757082746913,0.03121,110980.0,110960.0,0.3608]
[1757082747105,0.03121,110980.0,110970.0,1.45856]
[1757082747307,0.03121,110980.0,110970.0,1.78168235]
[1757082747604,0.0001,110990.0,110970.0,1.87179165]
[1757082747809,0.0001,110990.0,110980.0,0.3608]
[1757082748006,0.03131,111000.0,110980.0,0.7009013]
[1757082748402,0.03131,111000.0,110990.0,0.3608]
[1757082748610,0.0001,111010.0,111000.0,0.0900856]
[1757082748802,0.02136096,111020.0,111010.0,0.0900774]
[1757082749001,0.02023096,111020.0,111010.0,0.7008774]
[1757082749202,0.02023096,111020.0,111010.0,0.79097154]
[1757082750116,0.00023096,111020.0,111010.0,0.79097154]
[1757082750414,0.00123096,111020.0,111010.0,0.79597154]
[1757082750621,0.00123096,111020.0,111010.0,0.85984479]
[1757082751113,0.09030036,111020.0,111010.0,0.42767325]
[1757082751415,0.09030036,111020.0,111010.0,1.52383325]
[1757082751711,0.09030036,111020.0,111010.0,1.52275325]
[1757082751903,0.09130036,111020.0,111010.0,0.42967325]
[1757082752106,0.12251036,111020.0,111010.0,0.06887325]
[1757082752311,0.37251036,111020.0,111010.0,0.06887325]
[1757082752712,0.37151036,111020.0,111010.0,0.06687325]
[1757082752912,0.37251036,111020.0,111010.0,0.06387325]
[1757082753119,0.37251036,111020.0,111010.0,0.06687325]
[1757082753413,0.37251036,111020.0,111010.0,0.42767325]
[1757082753607,0.12251036,111020.0,111010.0,0.42767325]
[1757082754011,0.37251036,111020.0,111010.0,0.42467325]
[1757082754316,0.37551036,111020.0,111010.0,0.42467325]
[1757082754719,0.03544096,111020.0,111010.0,0.42467325]
[1757082754910,0.03744096,111020.0,111010.0,0.42567325]
[1757082755213,0.28744096,111020.0,111010.0,0.42567325]
[1757082755720,0.64524096,111020.0,111010.0,0.06387325]
[1757082755914,0.64524096,111020.0,111010.0,0.06487325]
[1757082756113,0.28644096,111020.0,111010.0,0.06487325]
[1757082756413,0.64724096,111020.0,111010.0,0.001]
[1757082756610,0.28644096,111020.0,111010.0,0.001]
[1757082756814,0.00523096,111020.0,111010.0,0.001]
[1757082757006,0.00523096,111020.0,111010.0,0.3618]
[1757082757214,0.00523096,111020.0,111010.0,1.094]
[1757082757523,0.39724096,111020.0,111010.0,1.094]
[1757082757717,0.03644096,111020.0,111010.0,1.094]
[1757082757921,0.39724096,111020.0,111010.0,1.094]
[1757082758220,0.64724096,111020.0,111010.0,0.001]
[1757082758416,0.39724096,111020.0,111010.0,0.001]
[1757082758620,0.03644096,111020.0,111010.0,0.001]
[1757082758824,0.36603096,111020.0,111010.0,0.001]
[1757082759015,0.03644096,111020.0,111010.0,0.6118]
[1757082759321,0.03644096,111020.0,111010.0,0.3618]
[1757082759518,0.00523096,111020.0,111010.0,1.5424775]
[1757082759818,0.09530036,111020.0,111010.0,1.4524]
[1757082760419,0.12651036,111020.0,111010.0,1.0916]
[1757082760616,0.73731036,111020.0,111010.0,0.001]
[1757082762324,0.73731036,111020.0,111010.0,1e-07]
[1757082762713,0.48731036,111020.0,111010.0,1e-07]
[1757082764325,0.73731036,111020.0,111010.0,1e-07]
[1757082764625,0.73731036,111020.0,110990.0,0.0001]
[1757082764626,0.1212956,111000.0,110990.0,0.0001]
[1757082764826,0.1212956,111000.0,110980.0,0.06387325]
[1757082764827,0.0900937,110990.0,110980.0,0.06387325]
[1757082765413,0.0900937,110990.0,110980.0,0.88510881]
[1757082765822,0.0900937,110990.0,110980.0,0.52430881]
[1757082766025,0.4508937,110990.0,110980.0,0.52430881]
[1757082766223,0.0900937,110990.0,110980.0,1.22521071]
[1757082766416,0.1214007,111000.0,110980.0,1.22521071]
[1757082766618,0.0001,111000.0,110990.0,0.91132926]
[1757082766925,0.001,111000.0,110990.0,1.99440926]
[1757082767130,0.001,111000.0,110990.0,2.24440926]
[1757082767425,0.0910856,111000.0,110990.0,2.15431556]
[1757082767633,0.0900856,111000.0,110990.0,1.90239556]
[1757082767928,0.0910856,111000.0,110990.0,1.99248926]
[1757082768127,0.0910856,111000.0,110980.0,0.06687325]
[1757082768128,0.0900938,110990.0,110980.0,0.06687325]
[1757082768332,0.03138,110980.0,110970.0,0.05707223]
[1757082768517,0.03138,110980.0,110950.0,0.0001]
[1757082768518,0.74181556,110980.0,110950.0,0.0001]
[1757082768721,0.39218,110960.0,110940.0,0.0001]
[1757082768918,0.03138,110940.0,110920.0,0.54683894]
[1757082769122,0.39218,110940.0,110920.0,0.18593894]
[1757082769318,0.39218,110940.0,110920.0,0.18581594]
[1757082769521,0.3608,110930.0,110920.0,0.09689535]
[1757082770133,0.3608,110930.0,110900.0,0.0001]
[1757082770134,0.03138,110920.0,110900.0,0.0001]
[1757082770332,0.3608,110910.0,110880.0,0.3609]
[1757082770533,0.3608,110910.0,110880.0,1.8608]
[1757082771132,0.3608,110910.0,110880.0,0.82123556]
[1757082771429,0.3608,110910.0,110880.0,1.93362099]
[1757082771635,0.39218,110920.0,110880.0,1.93362099]
[1757082771826,0.3608,110910.0,110880.0,1.93762099]
[1757082772027,0.3618,110910.0,110880.0,1.93762099]
[1757082772236,0.3608,110890.0,110880.0,0.004]
[1757082772724,0.6108,110890.0,110880.0,0.004]
[1757082772921,1.05808932,110890.0,110860.0,0.0001]
[1757082773134,0.3608,110870.0,110860.0,0.01396194]
[1757082773628,0.3608,110870.0,110860.0,0.03222844]
[1757082773831,0.3598,110870.0,110860.0,0.03222844]
[1757082774134,0.6088,110870.0,110860.0,0.03222844]
[1757082774428,0.6088,110870.0,110860.0,0.03322844]
[1757082774735,0.03138,110860.0,110840.0,0.11237365]
[1757082775037,0.3598,110850.0,110840.0,0.11227365]
[1757082775236,0.3608,110850.0,110840.0,0.11227365]